lending/lending_fUSD_20241211
["ID","MTS","AMOUNT","RATE_DAILY","PERIOD"]
[345040235,1733946645557,-500.0,0.00010958,2]
[345040236,1733946645570,-1688.07,0.00010958,2]
[345040237,1733946645582,-1688.07,0.00010958,2]
[345040238,1733946645595,-500.0,0.00010958,2]
[345040239,1733946645609,-500.0,0.00010958,2]
[345040240,1733946645621,-500.0,0.00010958,2]
[345040241,1733946645633,-500.0,0.00010958,2]
[345040242,1733946645646,-500.0,0.00010958,2]
[345040243,1733946645659,-500.0,0.00010958,2]
[345040244,1733946645672,-500.0,0.00010958,2]
[345040245,1733946645685,-500.0,0.00010958,2]
[345040246,1733946645699,-500.0,0.00010958,2]
[345040247,1733946645712,-500.0,0.00010958,2]
[345040248,1733946645724,-500.0,0.00010958,2]
[345040249,1733946645736,-500.0,0.00010958,2]
[345040250,1733946645751,-500.0,0.00010958,2]
[345040251,1733946645763,-837.41,0.00010958,2]
[345040252,1733946645777,-500.0,0.00010958,2]
[345040253,1733946645789,-500.0,0.00010958,2]
[345040254,1733946645803,-521.32,0.00010958,2]
[345040255,1733946645816,-521.32,0.00010958,2]
[345040256,1733946645828,-500.0,0.00010958,2]
[345040257,1733946645841,-500.0,0.00010958,2]
[345040258,1733946645854,-500.0,0.00010958,2]
[345040259,1733946645867,-500.0,0.00010958,2]
[345040260,1733946645879,-500.0,0.00010958,2]
[345040261,1733946645891,-500.0,0.00010958,2]
[345040262,1733946645904,-500.0,0.00010958,2]
[345040263,1733946645916,-500.0,0.00010958,2]
[345040264,1733946645928,-500.0,0.00010958,2]
[345040265,1733946645940,-500.0,0.00010958,2]
[345040266,1733946645953,-771.12,0.00010958,2]
[345040267,1733946645966,-500.0,0.00010958,2]
[345040268,1733946645978,-771.12,0.00010958,2]
[345040269,1733946645991,-500.0,0.00010958,2]
[345040271,1733946646005,-500.0,0.00010958,2]
[345040273,1733946646018,-1975.14,0.00010958,2]
[345040274,1733946646030,-500.0,0.00010958,2]
[345040276,1733946646044,-1975.14,0.00010958,2]
[345040279,1733946646057,-500.0,0.00010958,2]
[345040281,1733946646070,-3457.56,0.00010958,2]
[345040283,1733946646083,-500.0,0.00010958,2]
[345040286,1733946646096,-3457.56,0.00010958,2]
[345040288,1733946646110,-500.0,0.00010958,2]
[345040290,1733946646123,-694.74,0.00010958,2]
[345040292,1733946646137,-750.06,0.00010958,2]
[345040295,1733946646150,-750.06,0.00010958,2]
[345040297,1733946646165,-500.0,0.00010958,2]
[345040300,1733946646179,-500.0,0.00010958,2]
[345040302,1733946646193,-1694.27,0.00010958,2]
[345040304,1733946646206,-500.0,0.00010958,2]
[345040307,1733946646220,-500.0,0.00010958,2]
[345040309,1733946646233,-500.0,0.00010958,2]
[345040312,1733946646247,-500.0,0.00010958,2]
[345040313,1733946646259,-500.0,0.00010958,2]
[345040314,1733946646270,-689.32,0.00010958,2]
[345040315,1733946646280,-500.0,0.00010958,2]
[345040316,1733946646290,-859.02,0.00010958,2]
[345040317,1733946646587,-500.0,0.00010958,2]
[345040318,1733946646622,-690.13,0.00010958,2]
[345040319,1733946646633,-690.13,0.00010958,2]
[345040320,1733946646643,-500.0,0.00010958,2]
[345040321,1733946646652,-500.0,0.00010958,2]
[345040322,1733946646662,-500.0,0.00010958,2]
[345040323,1733946646672,-500.0,0.00010958,2]
[345040324,1733946646682,-500.0,0.00010958,2]
[345040325,1733946646692,-500.0,0.00010958,2]
[345040326,1733946646702,-4379.17,0.00010958,2]
[345040327,1733946646711,-4379.17,0.00010958,2]
[345040328,1733946646721,-500.0,0.00010958,2]
[345040329,1733946646731,-688.46,0.00010958,2]
[345040330,1733946646740,-500.0,0.00010958,2]
[345040331,1733946646752,-536.7,0.00010958,2]
[345040332,1733946646761,-536.7,0.00010958,2]
[345040333,1733946646773,-500.0,0.00010958,2]
[345040334,1733946646783,-500.0,0.00010958,2]
[345040335,1733946646793,-500.0,0.00010958,2]
[345040336,1733946646802,-500.0,0.00010958,2]
[345040337,1733946646812,-500.0,0.00010958,2]
[345040338,1733946646822,-500.0,0.00010958,2]
[345040339,1733946646831,-3484.88,0.00010958,2]
[345040340,1733946646840,-500.0,0.00010958,2]
[345040341,1733946646850,-4106.25,0.00010958,2]
[345040342,1733946646859,-500.0,0.00010958,2]
[345040343,1733946646869,-3484.88,0.00010958,2]
[345040344,1733946646879,-500.0,0.00010958,2]
[345040345,1733946646888,-500.0,0.00010958,2]
[345040346,1733946646898,-1127.72,0.00010958,2]
[345040347,1733946646911,-1127.72,0.00010958,2]
[345040348,1733946646921,-500.0,0.00010958,2]
[345040349,1733946646930,-1127.72,0.00010958,2]
[345040350,1733946646939,-500.0,0.00010958,2]
[345040351,1733946646948,-500.0,0.00010958,2]
[345040352,1733946646957,-500.0,0.00010958,2]
[345040353,1733946646967,-500.0,0.00010958,2]
[345040354,1733946646978,-500.0,0.00010958,2]
[345040355,1733946646993,-500.0,0.00010958,2]
[345040356,1733946647004,-500.0,0.00010958,2]
[345040357,1733946647014,-500.0,0.00010958,2]
[345040358,1733946647023,-500.0,0.00010958,2]
[345040359,1733946647032,-858.1,0.00010958,2]
[345040360,1733946647042,-841.46,0.00010958,2]
[345040361,1733946647051,-841.46,0.00010958,2]
[345040362,1733946647061,-500.0,0.00010958,2]
[345040363,1733946647071,-500.0,0.00010958,2]
[345040364,1733946647080,-500.0,0.00010958,2]
[345040365,1733946647090,-4226.97,0.00010958,2]
[345040366,1733946647100,-500.0,0.00010958,2]
[345040367,1733946647110,-4226.97,0.00010958,2]
[345040368,1733946647120,-1696.2,0.00010958,2]
[345040369,1733946647129,-1696.2,0.00010958,2]
[345040370,1733946647138,-1696.2,0.00010958,2]
[345040371,1733946647148,-500.0,0.00010958,2]
[345040372,1733946647161,-500.0,0.00010958,2]
[345040373,1733946647171,-500.0,0.00010958,2]
[345040374,1733946647180,-500.0,0.00010958,2]
[345040375,1733946647190,-500.0,0.00010958,2]
[345040376,1733946647200,-534.35,0.00010958,2]
[345040377,1733946647209,-500.0,0.00010958,2]
[345040378,1733946647219,-500.0,0.00010958,2]
[345040379,1733946647228,-500.0,0.00010958,2]
[345040380,1733946647238,-500.0,0.00010958,2]
[345040381,1733946647250,-500.0,0.00010958,2]
[345040382,1733946647259,-500.0,0.00010973,2]
[345040383,1733946647269,-3000.0,0.0001099,2]
[345040384,1733946647279,-179.80760629,0.00010998,2]
[345040385,1733946647289,-5815.39,0.00010998,2]
[345040386,1733946647302,-1142.82,0.00010998,2]
[345040387,1733946647312,-500.0,0.00010998,2]
[345040388,1733946647323,-381.888261,0.00010998,2]
[345040389,1733946647339,-500.0,0.00010998,2]
[345040390,1733946647348,-500.0,0.00010998,2]
[345040391,1733946647359,-6189.237526,0.00010998,2]
[345040392,1733946647369,-5824.613726,0.00010998,2]
[345040393,1733946647379,-1071.49,0.00010998,2]
[345040394,1733946647389,-500.0,0.00010998,2]
[345040395,1733946647399,-4036.04,0.00010998,2]
[345040396,1733946647408,-5116.95,0.00010998,2]
[345040397,1733946647418,-3648.43,0.00010998,2]
[345040398,1733946647428,-674.48,0.00010998,2]
[345040399,1733946647438,-500.0,0.00010998,2]
[345040400,1733946647448,-1622.07,0.00010998,2]
[345040401,1733946647457,-3961.81,0.00010998,2]
[345040402,1733946647467,-500.0,0.00010998,2]
[345040403,1733946647476,-888.95,0.00010998,2]
[345040404,1733946647486,-578.64,0.00010998,2]
[345040405,1733946647497,-500.0,0.00010998,2]
[345040406,1733946647507,-1008.26,0.00010998,2]
[345040407,1733946647517,-4683.76,0.00010998,2]
[345040408,1733946647527,-2069.37,0.00010998,2]
[345040409,1733946647537,-500.0,0.00010998,2]
[345040410,1733946647546,-500.0,0.00010998,2]
[345040411,1733946647556,-500.0,0.00010998,2]
[345040412,1733946647565,-500.0,0.00010998,2]
[345040413,1733946647575,-500.0,0.00010998,2]
[345040414,1733946647585,-500.0,0.00010998,2]
[345040415,1733946647595,-4106.25,0.00010998,2]
[345040416,1733946647607,-500.0,0.00010998,2]
[345040417,1733946647616,-2756.5560907,0.00010999,2]
[345040418,1733946647627,-3787.13814715,0.00010999,2]
[345040419,1733946647638,-2756.55609069,0.00011,2]
[345040420,1733946647648,-3787.13814714,0.00011,2]
[345040421,1733946647657,-4000.0,0.00011,2]
[345040422,1733946647667,-179.80760628,0.00011,2]
[345040423,1733946647677,-2756.55609069,0.00011,2]
[345040424,1733946647686,-150.0,0.00011012,2]
[345040425,1733946647696,-150.0,0.00011033,2]
[345040426,1733946647705,-200.0,0.0001104,2]
[345040427,1733946647715,-182.319,0.00011047,2]
[345040428,1733946647725,-1407.196,0.00011065,2]
[345040429,1733946647736,-500.0,0.00011066,2]
[345040430,1733946647747,-887.04,0.00011066,2]
[345040431,1733946647756,-500.0,0.00011066,2]
[345040432,1733946647767,-4145.72,0.00011066,2]
[345040433,1733946647776,-500.0,0.00011066,2]
[345040434,1733946647787,-500.0,0.00011066,2]
[345040435,1733946647797,-500.0,0.00011066,2]
[345040436,1733946647807,-1071.79,0.00011066,2]
[345040437,1733946647816,-500.0,0.00011066,2]
[345040438,1733946647826,-500.0,0.00011066,2]
[345040439,1733946647836,-600.3,0.00011066,2]
[345040440,1733946647850,-500.0,0.00011066,2]
[345040441,1733946647859,-1688.07,0.00011066,2]
[345040442,1733946647870,-500.0,0.00011066,2]
[345040443,1733946647880,-500.0,0.00011066,2]
[345040444,1733946647890,-521.32,0.00011066,2]
[345040445,1733946647899,-500.0,0.00011066,2]
[345040446,1733946647910,-1975.14,0.00011066,2]
[345040447,1733946647919,-3457.56,0.00011066,2]
[345040448,1733946647929,-500.0,0.00011066,2]
[345040449,1733946647939,-4379.17,0.00011066,2]
[345040450,1733946647948,-3484.88,0.00011066,2]
[345040451,1733946647958,-500.0,0.00011066,2]
[345040452,1733946647967,-841.46,0.00011066,2]
[345040453,1733946647977,-4226.97,0.00011066,2]
[345040454,1733946647987,-500.0,0.00011067,2]
[345040455,1733946647997,-500.0,0.00011067,2]
[345040456,1733946648013,-500.0,0.00011067,2]
[345040457,1733946648023,-500.0,0.00011067,2]
[345040458,1733946648032,-1463.01,0.00011067,2]
[345040459,1733946648043,-894.4,0.00011067,2]
[345040460,1733946648054,-500.0,0.00011067,2]
[345040461,1733946648066,-571.58,0.00011067,2]
[345040462,1733946648077,-500.0,0.00011067,2]
[345040463,1733946648087,-1329.9,0.00011067,2]
[345040464,1733946648098,-500.0,0.00011067,2]
[345040465,1733946648109,-500.0,0.00011067,2]
[345040466,1733946648120,-500.0,0.00011067,2]
[345040467,1733946648130,-500.0,0.00011067,2]
[345040468,1733946648141,-500.0,0.00011067,2]
[345040469,1733946648151,-1041.98,0.00011067,2]
[345040470,1733946648162,-500.0,0.00011067,2]
[345040471,1733946648172,-500.0,0.00011067,2]
[345040472,1733946648183,-4753.36,0.00011067,2]
[345040473,1733946648192,-889.89,0.00011067,2]
[345040474,1733946648202,-500.0,0.00011067,2]
[345040475,1733946648212,-500.0,0.00011067,2]
[345040476,1733946648222,-500.0,0.00011067,2]
[345040477,1733946648232,-892.4,0.00011067,2]
[345040478,1733946648243,-500.0,0.00011067,2]
[345040479,1733946648255,-1290.55,0.00011067,2]
[345040480,1733946648266,-500.0,0.00011067,2]
[345040481,1733946648277,-783.77,0.00011067,2]
[345040482,1733946648288,-500.0,0.00011067,2]
[345040483,1733946648303,-500.0,0.00011067,2]
[345040484,1733946648314,-500.0,0.00011067,2]
[345040485,1733946648325,-500.0,0.00011067,2]
[345040486,1733946648335,-500.0,0.00011067,2]
[345040487,1733946648348,-500.0,0.00011067,2]
[345040488,1733946648359,-500.0,0.00011067,2]
[345040489,1733946648369,-500.0,0.00011067,2]
[345040490,1733946648381,-500.0,0.00011067,2]
[345040491,1733946648392,-500.0,0.00011067,2]
[345040492,1733946648402,-500.0,0.00011067,2]
[345040493,1733946648413,-500.0,0.00011067,2]
[345040494,1733946648423,-3539.68,0.00011067,2]
[345040495,1733946648434,-500.0,0.00011067,2]
[345040496,1733946648444,-500.0,0.00011067,2]
[345040497,1733946648455,-691.11,0.00011067,2]
[345040498,1733946648466,-877.24,0.00011067,2]
[345040499,1733946648476,-500.0,0.00011067,2]
[345040500,1733946648487,-500.0,0.00011067,2]
[345040501,1733946648499,-665.42,0.00011067,2]
[345040502,1733946648510,-500.0,0.00011067,2]
[345040503,1733946648520,-4008.05,0.00011067,2]
[345040504,1733946648530,-500.0,0.00011067,2]
[345040505,1733946648540,-500.0,0.00011067,2]
[345040506,1733946648554,-500.0,0.00011067,2]
[345040507,1733946648564,-1977.05,0.00011067,2]
[345040508,1733946648574,-500.0,0.00011067,2]
[345040509,1733946648584,-646.63,0.00011067,2]
[345040510,1733946648594,-544.84,0.00011067,2]
[345040511,1733946648604,-1246.52,0.00011067,2]
[345040512,1733946648614,-506.5,0.00011067,2]
[345040513,1733946648624,-500.0,0.00011067,2]
[345040514,1733946648635,-500.0,0.00011067,2]
[345040515,1733946648646,-500.0,0.00011067,2]
[345040516,1733946648655,-1726.33,0.00011067,2]
[345040517,1733946648665,-757.57,0.00011067,2]
[345040518,1733946648675,-4127.21,0.00011067,2]
[345040519,1733946648685,-500.0,0.00011067,2]
[345040520,1733946648695,-4572.87,0.00011067,2]
[345040521,1733946648705,-1701.63,0.00011067,2]
[345040522,1733946648716,-500.0,0.00011067,2]
[345040523,1733946648726,-923.61,0.00011067,2]
[345040524,1733946648736,-500.0,0.00011067,2]
[345040525,1733946648746,-500.0,0.00011067,2]
[345040526,1733946648757,-1350.03,0.00011067,2]
[345040527,1733946648767,-500.0,0.00011067,2]
[345040528,1733946648776,-803.68,0.00011067,2]
[345040529,1733946648786,-500.0,0.00011067,2]
[345040530,1733946648796,-638.87,0.00011067,2]
[345040531,1733946648806,-500.0,0.00011067,2]
[345040532,1733946648816,-500.0,0.00011067,2]
[345040533,1733946648826,-3859.78,0.00011067,2]
[345040534,1733946648836,-606.44,0.00011067,2]
[345040535,1733946648846,-1599.11,0.00011067,2]
[345040536,1733946648856,-1539.41,0.00011067,2]
[345040537,1733946648866,-837.41,0.00011067,2]
[345040538,1733946648875,-500.0,0.00011067,2]
[345040539,1733946648885,-694.74,0.00011067,2]
[345040540,1733946648895,-689.32,0.00011067,2]
[345040541,1733946648904,-859.02,0.00011067,2]
[345040542,1733946648915,-500.0,0.00011067,2]
[345040543,1733946648924,-1127.72,0.00011067,2]
[345040544,1733946648934,-500.0,0.00011067,2]
[345040545,1733946648944,-500.0,0.00011067,2]
[345040546,1733946648954,-1696.2,0.00011067,2]
[345040547,1733946648964,-534.35,0.00011067,2]
[345040548,1733946648975,-500.0,0.00011068,2]
[345040549,1733946648984,-500.0,0.00011068,2]
[345040550,1733946648994,-500.0,0.00011068,2]
[345040551,1733946649005,-500.0,0.00011068,2]
[345040552,1733946649014,-500.0,0.00011068,2]
[345040553,1733946649024,-500.0,0.00011068,2]
[345040554,1733946649033,-500.0,0.00011068,2]
[345040555,1733946649043,-500.0,0.00011068,2]
[345040556,1733946649053,-500.0,0.00011068,2]
[345040557,1733946649063,-500.0,0.00011068,2]
[345040558,1733946649073,-500.0,0.00011068,2]
[345040559,1733946649083,-500.0,0.00011068,2]
[345040560,1733946649093,-500.0,0.00011068,2]
[345040561,1733946649103,-500.0,0.00011068,2]
[345040562,1733946649113,-500.0,0.00011068,2]
[345040563,1733946649123,-500.0,0.00011068,2]
[345040564,1733946649139,-500.0,0.00011068,2]
[345040565,1733946649149,-500.0,0.00011068,2]
[345040566,1733946649161,-279.61,0.00011068,2]
[345040567,1733946649171,-755.37,0.00011068,2]
[345040568,1733946649182,-500.0,0.00011068,2]
[345040569,1733946649192,-500.0,0.00011068,2]
[345040570,1733946649203,-500.0,0.00011068,2]
[345040571,1733946649213,-500.0,0.00011068,2]
[345040572,1733946649224,-500.0,0.00011068,2]
[345040573,1733946649234,-500.0,0.00011068,2]
[345040574,1733946649244,-222.03,0.00011068,2]
[345040575,1733946649255,-500.0,0.00011068,2]
[345040576,1733946649266,-500.0,0.00011068,2]
[345040577,1733946649276,-1107.23,0.00011068,2]
[345040578,1733946649287,-500.0,0.00011068,2]
[345040579,1733946649300,-1762.98,0.00011068,2]
[345040580,1733946649311,-747.58,0.00011068,2]
[345040581,1733946649321,-630.42,0.00011068,2]
[345040582,1733946649332,-688.9,0.00011068,2]
[345040583,1733946649343,-2478.87,0.00011068,2]
[345040584,1733946649355,-500.0,0.00011068,2]
[345040585,1733946649364,-500.0,0.00011068,2]
[345040586,1733946649375,-500.0,0.00011068,2]
[345040587,1733946649386,-608.94,0.00011068,2]
[345040588,1733946649396,-500.0,0.00011068,2]
[345040589,1733946649407,-500.0,0.00011068,2]
[345040590,1733946649416,-500.0,0.00011068,2]
[345040591,1733946649427,-500.0,0.00011068,2]
[345040592,1733946649436,-500.0,0.00011068,2]
[345040593,1733946649446,-1829.9,0.00011068,2]
[345040594,1733946649455,-500.0,0.00011068,2]
[345040595,1733946649465,-500.0,0.00011068,2]
[345040596,1733946649475,-500.0,0.00011068,2]
[345040597,1733946649485,-231.15,0.00011068,2]
[345040598,1733946649495,-4078.29,0.00011068,2]
[345040599,1733946649507,-500.0,0.00011068,2]
[345040600,1733946649518,-500.0,0.00011068,2]
[345040601,1733946649528,-855.15,0.00011068,2]
[345040602,1733946649539,-500.0,0.00011068,2]
[345040603,1733946649548,-3434.83,0.00011068,2]
[345040604,1733946649558,-701.95,0.00011068,2]
[345040605,1733946649569,-500.0,0.00011068,2]
[345040606,1733946649578,-500.0,0.00011068,2]
[345040607,1733946649587,-750.06,0.00011068,2]
[345040608,1733946649597,-690.13,0.00011068,2]
[345040609,1733946649606,-536.7,0.00011068,2]
[345040610,1733946649615,-1000.0,0.00011074,2]
[345040611,1733946649625,-455.97,0.00011095,2]
[345040612,1733946649634,-625.35,0.00011095,2]
[345040613,1733946649642,-500.0,0.00011095,2]
[345040614,1733946649654,-500.0,0.00011095,2]
[345040615,1733946649823,-417.34,0.00011095,2]
[345040616,1733946649834,-500.0,0.00011095,2]
[345040617,1733946649844,-500.0,0.00011095,2]
[345040618,1733946649854,-264.16,0.00011095,2]
[345040619,1733946649864,-640.50510339,0.00011095,2]
[345040620,1733946649874,-425.17,0.00011095,2]
[345040621,1733946649884,-500.0,0.00011095,2]
[345040622,1733946649894,-511.73,0.00011095,2]
[345040623,1733946649903,-500.0,0.00011095,2]
[345040624,1733946649914,-500.0,0.00011095,2]
[345040625,1733946649923,-500.0,0.00011095,2]
[345040626,1733946649933,-507.06,0.00011095,2]
[345040627,1733946649943,-500.0,0.00011095,2]
[345040628,1733946649953,-500.0,0.00011095,2]
[345040629,1733946649963,-500.0,0.00011095,2]
[345040630,1733946649973,-500.0,0.00011095,2]
[345040631,1733946649982,-396.23000087,0.00011095,2]
[345040632,1733946649992,-500.0,0.00011095,2]
[345040633,1733946650003,-378.39,0.00011095,2]
[345040634,1733946650013,-643.01,0.00011095,2]
[345040635,1733946650022,-500.0,0.00011095,2]
[345040636,1733946650032,-500.0,0.00011095,2]
[345040637,1733946650042,-500.0,0.00011095,2]
[345040638,1733946650052,-500.0,0.00011095,2]
[345040639,1733946650064,-500.0,0.00011095,2]
[345040640,1733946650074,-500.0,0.00011095,2]
[345040641,1733946650085,-500.0,0.00011095,2]
[345040642,1733946650095,-500.0,0.00011095,2]
[345040643,1733946650104,-500.0,0.00011095,2]
[345040644,1733946650114,-500.0,0.00011095,2]
[345040645,1733946650123,-500.0,0.00011095,2]
[345040646,1733946650133,-500.0,0.00011095,2]
[345040647,1733946650143,-500.0,0.00011095,2]
[345040648,1733946650153,-500.0,0.00011095,2]
[345040649,1733946650163,-500.0,0.00011095,2]
[345040650,1733946650173,-500.0,0.00011095,2]
[345040651,1733946650182,-500.0,0.00011095,2]
[345040652,1733946650192,-500.0,0.00011095,2]
[345040653,1733946650201,-500.0,0.00011095,2]
[345040654,1733946650211,-500.0,0.00011095,2]
[345040655,1733946650221,-500.0,0.00011095,2]
[345040656,1733946650231,-500.0,0.00011095,2]
[345040657,1733946650242,-500.0,0.00011095,2]
[345040658,1733946650253,-500.0,0.00011095,2]
[345040659,1733946650262,-500.0,0.00011095,2]
[345040660,1733946650272,-645.90344333,0.00011096,2]
[345040661,1733946650282,-500.0,0.00011096,2]
[345040662,1733946650293,-500.0,0.00011096,2]
[345040663,1733946650305,-1505.3,0.00011096,2]
[345040664,1733946650314,-500.0,0.00011096,2]
[345040665,1733946650324,-5002.53,0.00011096,2]
[345040666,1733946650335,-4145.6,0.00011096,2]
[345040667,1733946650346,-4238.72,0.00011096,2]
[345040668,1733946650356,-2064.2,0.00011096,2]
[345040669,1733946650365,-1159.1,0.00011096,2]
[345040670,1733946650377,-2868.95,0.00011096,2]
[345040671,1733946650388,-500.0,0.00011096,2]
[345040672,1733946650398,-887.04,0.00011096,2]
[345040673,1733946650408,-500.0,0.00011096,2]
[345040674,1733946650418,-287.32203147,0.00011096,2]
[345040675,1733946650428,-4145.72,0.00011096,2]
[345040676,1733946650437,-500.0,0.00011096,2]
[345040677,1733946650447,-500.0,0.00011096,2]
[345040678,1733946650456,-500.0,0.00011096,2]
[345040679,1733946650466,-500.0,0.00011096,2]
[345040680,1733946650475,-500.0,0.00011096,2]
[345040681,1733946650485,-1071.79,0.00011096,2]
[345040682,1733946650495,-500.0,0.00011096,2]
[345040683,1733946650505,-500.0,0.00011096,2]
[345040684,1733946650515,-500.0,0.00011096,2]
[345040685,1733946650524,-4086.69,0.00011096,2]
[345040686,1733946650534,-600.3,0.00011096,2]
[345040687,1733946650543,-625.59,0.00011096,2]
[345040688,1733946650553,-500.0,0.00011096,2]
[345040689,1733946650563,-1688.07,0.00011096,2]
[345040690,1733946650573,-500.0,0.00011096,2]
[345040691,1733946650582,-500.0,0.00011096,2]
[345040692,1733946650592,-500.0,0.00011096,2]
[345040693,1733946650601,-521.32,0.00011096,2]
[345040694,1733946650611,-500.0,0.00011096,2]
[345040695,1733946650621,-500.0,0.00011096,2]
[345040696,1733946650630,-1975.14,0.00011096,2]
[345040697,1733946650640,-3457.56,0.00011096,2]
[345040698,1733946650649,-1694.27,0.00011096,2]
[345040699,1733946650659,-500.0,0.00011096,2]
[345040700,1733946650669,-4379.17,0.00011096,2]
[345040701,1733946650679,-688.46,0.00011096,2]
[345040702,1733946650689,-500.0,0.00011096,2]
[345040703,1733946650698,-500.0,0.00011096,2]
[345040704,1733946650708,-3484.88,0.00011096,2]
[345040705,1733946650717,-500.0,0.00011096,2]
[345040706,1733946650727,-1127.72,0.00011096,2]
[345040707,1733946650736,-1127.72,0.00011096,2]
[345040708,1733946650746,-500.0,0.00011096,2]
[345040709,1733946650757,-858.1,0.00011096,2]
[345040710,1733946650766,-841.46,0.00011096,2]
[345040711,1733946650775,-500.0,0.00011096,2]
[345040712,1733946650785,-4226.97,0.00011096,2]
[345040713,1733946650795,-500.0,0.00011096,2]
[345040714,1733946650804,-1696.2,0.00011096,2]
[345040715,1733946650814,-1696.2,0.00011096,2]
[345040716,1733946650823,-500.0,0.00011097,2]
[345040717,1733946650834,-500.0,0.00011097,2]
[345040718,1733946650843,-500.0,0.00011097,2]
[345040719,1733946650854,-500.0,0.00011097,2]
[345040720,1733946650867,-286.34,0.00011097,2]
[345040721,1733946650876,-500.0,0.00011097,2]
[345040722,1733946650886,-500.0,0.00011097,2]
[345040723,1733946650895,-1463.01,0.00011097,2]
[345040724,1733946650905,-1463.01,0.00011097,2]
[345040725,1733946650915,-894.4,0.00011097,2]
[345040726,1733946650924,-894.4,0.00011097,2]
[345040727,1733946650934,-500.0,0.00011097,2]
[345040728,1733946650944,-500.0,0.00011097,2]
[345040729,1733946650954,-571.58,0.00011097,2]
[345040730,1733946650963,-571.58,0.00011097,2]
[345040731,1733946650973,-500.0,0.00011097,2]
[345040732,1733946650983,-500.0,0.00011097,2]
[345040733,1733946650994,-1329.9,0.00011097,2]
[345040734,1733946651006,-1329.9,0.00011097,2]
[345040735,1733946651016,-500.0,0.00011097,2]
[345040736,1733946651026,-500.0,0.00011097,2]
[345040737,1733946651036,-500.0,0.00011097,2]
[345040738,1733946651046,-221.19,0.00011097,2]
[345040739,1733946651055,-500.0,0.00011097,2]
[345040740,1733946651065,-500.0,0.00011097,2]
[345040741,1733946651075,-500.0,0.00011097,2]
[345040742,1733946651085,-500.0,0.00011097,2]
[345040743,1733946651095,-1041.98,0.00011097,2]
[345040744,1733946651104,-1041.98,0.00011097,2]
[345040745,1733946651114,-500.0,0.00011097,2]
[345040746,1733946651124,-500.0,0.00011097,2]
[345040747,1733946651134,-500.0,0.00011097,2]
[345040748,1733946651143,-500.0,0.00011097,2]
[345040749,1733946651153,-4753.36,0.00011097,2]
[345040750,1733946651163,-4753.36,0.00011097,2]
[345040751,1733946651172,-889.89,0.00011097,2]
[345040752,1733946651182,-889.89,0.00011097,2]
[345040753,1733946651191,-500.0,0.00011097,2]
[345040754,1733946651201,-630.26,0.00011097,2]
[345040755,1733946651211,-500.0,0.00011097,2]
[345040756,1733946651220,-500.0,0.00011097,2]
[345040757,1733946651230,-500.0,0.00011097,2]
[345040758,1733946651239,-335.11,0.00011097,2]